Cogmind - Beta 11.1 @@@ ROGUE MODE // 2022.05.05 @ 15:39:54 Player: Decinym Result: Destroyed by D-53 Grenadier with Mini Grenade Launcher Performance ------------- Evolutions (0) 0 Regions Visited (2) 400 Robots Destroyed (11) 55 Value Destroyed (244) 244 Prototype IDs (0) 0 Alien Tech Used (0) 0 Bonus (0) 0 TOTAL SCORE: 699 Bonus ------- None Cogmind --------- Core Integrity 0/250 Matter 300/300 Energy 100/100 System Corruption 0% Temperature Cool (0) Movement Treading (160) Location -10/Mines Parts ------- > --- POWER (1) -------- (None) > --- PROPULSION (2) --- Light Treads > --- UTILITY (2) ------ Small Storage Unit Targeting Computer > --- WEAPON (2) ------- Light Assault Rifle > --- INVENTORY (8) ---- Light Ion Engine Wheel Wheel Improved Heat Sink Light Assault Rifle Makeshift Axe Peak State ------------ > --- POWER ------------ Ion Engine > --- PROPULSION ------- Aluminum Leg Aluminum Leg > --- UTILITY ---------- Small Storage Unit Targeting Computer > --- WEAPON ----------- Small Laser Assault Rifle > --- INVENTORY -------- Light Ion Engine Light Treads Light Treads Aluminum Leg Wheel Wheel Improved Heat Sink Light Assault Rifle [Rating: 8] Favorites ----------- Power Ion Engine Engine Ion Engine Propulsion Aluminum Leg Treads Light Treads Leg Aluminum Leg Utility Small Storage Unit Storage Small Storage Unit Processor Targeting Computer Weapon Assault Rifle Energy Gun Small Laser Ballistic Gun Assault Rifle Build | -11 -10 -10 ------- Run | Scr Mat Min Slots Evolved . | . . . Power . | . . . Propulsion . | . . . Utility . | . . . Weapon . | . . . Parts Attached 7 | . 4 3 Power . | . . . Engine . | . . . Core . | . . . Reactor . | . . . Propulsion 4 | . 2 2 Treads 2 | . . 2 Leg 2 | . 2 . Wheel . | . . . Hover . | . . . Flight . | . . . Utility 1 | . 1 . Device . | . . . Storage . | . . . Processor 1 | . 1 . Hackware . | . . . Protection . | . . . Artifact . | . . . Weapon 2 | . 1 1 Energy Gun . | . . . Energy Cannon . | . . . Ballistic Gun 2 | . 1 1 Ballistic Cannon . | . . . Launcher . | . . . Special Weapon . | . . . Impact Weapon . | . . . Slashing Weapon . | . . . Piercing Weapon . | . . . Special Melee Weapon . | . . . Unidentified Prototypes . | . . . Parts Lost 5 | . . 5 Power 1 | . . 1 Propulsion 3 | . . 3 Utility . | . . . Weapon 1 | . . 1 Highest Loss Streak 5 | . . 5 To Critical Strikes . | . . . Average Slot Usage (%) 98 | . 98 98 Engine 13 | . 14 13 Leg 27 | . 28 26 Storage 14 | . 14 14 Processor 13 | . 12 14 Energy Gun 3 | . 8 . Ballistic Gun 24 | . 19 27 Naked Turns . | . . . Heaviest Build 13 | 13 13 13 Greatest Support 40 | 20 20 40 Greatest Overweight (x) 1 | . . 1 Average Overweight (x) . | . . . Largest Inventory Capacity 8 | . 8 8 Average Capacity 8 | . 8 8 Most Carried 8 | . 8 8 Average Carried 7 | . 7 7 Final Capacity 8 | 8 8 8 Final Carried 8 | 6 8 6 Class Distribution -------------------- 100% | Mutant Dominant Class ---------------- Mutant | -10/Materials Mutant | -10/Mines Resources | -11 -10 -10 ----------- Run | Scr Mat Min Matter Collected 402 | 200 116 86 Remotely . | . . . Salvage Created 314 | . 272 42 Parts 25 | . 18 7 Haulers Intercepted . | . . . Recyclers Shooed 1 | . . 1 Parts Field Recycled . | . . . Retrieved Matter . | . . . Parts Self-Destructed . | . . . Prevented . | . . . Kills | -11 -10 -10 ------- Run | Scr Mat Min Combat Hostiles Destroyed 9 | . 6 3 Guns 9 | . 6 3 Classes Destroyed 3 | . 3 . Watcher 2 | . 2 . Swarmer 5 | . 2 3 Grunt 4 | . 4 . Best Kill Streak 3 | . 3 3 Combat Bots Only 3 | . 2 3 Max Kills in Single Turn 1 | . 1 1 Gunslinging . | . . . Exploded . | . . . Melee . | . . . Uniques/NPCs Destroyed . | . . . Combat | -11 -10 -10 -------- Run | Scr Mat Min Damage Taken 1062 | . 300 762 Core 252 | . 33 219 Absorbed by Shields . | . . . Core Remaining (%) 100 | 100 . . Volleys Fired 37 | . 23 14 Largest 2 | . 2 2 Hottest 60 | . 60 40 Shots Fired 74 | . 46 28 Gun 74 | . 46 28 Cannon . | . . . Launcher . | . . . Special . | . . . Kinetic 58 | . 30 28 Thermal 16 | . 16 . Explosive . | . . . Electromagnetic . | . . . Robot Hit Streak 16 | . 16 3 Robot Miss Streak 4 | . 2 4 Penetration Max . | . . . Secondary Targets 1 | . 1 . Max Gunslinging Chain 1 | . 1 . Shots Hit Robots 43 | . 33 10 Core Hits 18 | . 15 3 Critical Kills . | . . . Critical Parts Destroyed 1 | . 1 . Critical Strikes 1 | . 1 . Destroy 1 | . 1 . Melee Attacks . | . . . Impact . | . . . Slashing . | . . . Piercing . | . . . Sneak Attacks . | . . . Combat Hostiles . | . . . Follow-up Attacks . | . . . Damage Inflicted 473 | . 370 103 Guns 473 | . 370 103 Cannons . | . . . Explosions . | . . . Melee . | . . . Ramming . | . . . Kinetic 330 | . 227 103 Thermal 143 | . 143 . Explosive . | . . . Electromagnetic . | . . . Impact . | . . . Slashing . | . . . Piercing . | . . . Highest Corruption . | . . . Average Corruption . | . . . Corruption Purged . | . . . Corruption Blocked . | . . . Overload Shots . | . . . Overflow Damage . | . . . Projectiles . | . . . Explosions . | . . . Melee . | . . . Knockbacks . | . . . Impact . | . . . Kinetic . | . . . Secondary . | . . . Self-Inflicted Damage . | . . . Shots . | . . . Rammed . | . . . Targets Rammed . | . . . Kicked . | . . . Crushed . | . . . Highest Temperature 48 | . 48 . Average Temperature 23 | . 23 . Received Heat Transfer 144 | . 144 . Siege Activations . | . . . Robots Corrupted . | . . . Combat Hostiles . | . . . Parts Fried . | . . . Impact Corruptions . | . . . Robots Melted . | . . . Combat Hostiles . | . . . Parts Melted . | . . . Heat Transferred 325 | . 325 . Parts Sabotaged . | . . . Parts Stolen . | . . . Parts Stripped . | . . . Power Chain Reactions . | . . . Missiles Intercepted . | . . . Alert | -11 -10 -10 ------- Run | Scr Mat Min Peak Influence 204 | . 204 168 Initial 79 | . . 79 Average 127 | . 101 143 Maximum Alert Level 1 | . 1 . Low Security (%) 97 | . 92 100 Level 1 2 | . 7 . Level 2 . | . . . Level 3 . | . . . Level 4 . | . . . Level 5 . | . . . High Security . | . . . Max Security . | . . . Squads Dispatched 1 | . 1 . Investigation 1 | . 1 . Extermination . | . . . Reinforcement . | . . . Assault . | . . . Garrison . | . . . Intercept . | . . . Searches Triggered . | . . . Construction Impeded . | . . . Haulers Reinforced . | . . . Active Scanning Responses . | . . . Cargo Convoy Interrupts . | . . . Stealth | -11 -10 -10 --------- Run | Scr Mat Min Distress Signals 1 | . . 1 Communications Jammed . | . . . Distress Signals . | . . . Times Spotted 31 | . 11 20 Peak Tracking Total 17 | . 3 17 Tactical Retreats 1 | . 1 . Traps | -11 -10 -10 ------- Run | Scr Mat Min Traps Triggered 1 | . 1 . Indirectly . | . . . Trap Hack Attempts . | . . . Triggered . | . . . Disarmed . | . . . Reprogrammed . | . . . Reused . | . . . Traps Extracted . | . . . Installed . | . . . Triggered . | . . . Machines | -11 -10 -10 ---------- Run | Scr Mat Min Machines Disabled . | . . . Max in Single Turn . | . . . Machines Sabotaged . | . . . Garrisons Compromised . | . . . Overloaded Fab Kills . | . . . Hacking | -11 -10 -10 --------- Run | Scr Mat Min Machines Accessed 3 | . 1 2 Terminals 3 | . 1 2 Fabricators . | . . . Repair Stations . | . . . Recycling Units . | . . . Scanalyzers . | . . . Garrison Access . | . . . Total Hacks 8 | . 1 7 Successful 6 | . 1 5 Failed 2 | . . 2 Catastrophic . | . . . Database Lockouts . | . . . Manual 7 | . . 7 Terminals 8 | . 1 7 Fabricators . | . . . Repair Stations . | . . . Recycling Units . | . . . Scanalyzers . | . . . Garrison Access . | . . . Terminal Hacks 4 | . 1 3 Part Schematic 3 | . . 3 Branch Access Points 1 | . 1 . Fabricator Hacks . | . . . Repair Station Hacks . | . . . Recycling Unit Hacks . | . . . Scanalyzer . | . . . Garrison Access Hacks . | . . . Unauthorized Hacks 2 | . . 2 Terminals 2 | . . 2 Track 1 | . . 1 Botnet 1 | . . 1 Fabricators . | . . . Repair Stations . | . . . Recycling Units . | . . . Scanalyzers . | . . . Garrison Access . | . . . Data Cores Recovered . | . . . Used . | . . . Hacking Detections 2 | . . 2 Full Trace Events . | . . . Feedback Events . | . . . Feedback Blocked . | . . . Robot Schematics Acquired . | . . . Robots Built . | . . . Authchips . | . . . Time . | . . . Total Robot Build Rating . | . . . Part Schematics Acquired 3 | . . 3 Parts Built . | . . . Authchips . | . . . Time . | . . . Total Part Build Rating . | . . . Parts Repaired . | . . . Time . | . . . Parts Recycled . | . . . Recycled Matter . | . . . Retrieved Matter . | . . . Retrieved Components . | . . . Parts Scanalyzed . | . . . Part Schematics Acquired . | . . . Parts Damaged . | . . . Bothacking | -11 -10 -10 ------------ Run | Scr Mat Min Used RIF Installer . | . . . Robots Hacked . | . . . Non-combat . | . . . Combat . | . . . Robot Hacks Applied . | . . . Relay Couplers Released . | . . . Fabnet Peak Effective % . | . . . Robots Rewired . | . . . Allies Hacked . | . . . Hacks Repelled . | . . . Allies | -11 -10 -10 -------- Run | Scr Mat Min Total Allies . | . . . Largest Group . | . . . Highest-Rated Group . | . . . Highest-Rated Ally . | . . . Total Orders . | . . . Ally Attacks . | . . . Total Damage . | . . . Kills . | . . . Allies Corrupted . | . . . Allies Melted . | . . . Intel | -11 -10 -10 ------- Run | Scr Mat Min Robot Analysis Total . | . . . Derelict Logs Recovered 1 | . . 1 Drone Launches . | . . . Drone Recoveries . | . . . Exploration | -11 -10 -10 ------------- Run | Scr Mat Min Turns Passed 656 | . 242 414 Spaces Moved 437 | 1 133 303 Core 1 | . . 1 Treads 12 | . . 12 Legs 424 | 1 133 290 Wheels . | . . . Hover . | . . . Flight . | . . . Fastest Speed 100 | 120 120 100 Average Speed 121 | 120 120 121 Slowest Speed 160 | 120 120 160 Overloaded Moves . | . . . Propulsion Burnouts . | . . . Robots Hopped . | . . . Cave-ins Triggered . | . . . Exploration Rate (%) 28 | 2 34 50 Regions Visited 2 Branch Regions 1 Pre-discovered Areas 1 | . . 1 Known Exits Taken 1 | . 1 . Unknown Exits Taken 1 | 1 . . Scrap Searched . | . . . Spaces Dug . | . . . Terrain Destroyed . | . . . Melee . | . . . Projectile . | . . . AOE . | . . . Terrain Rammed . | . . . Walls Destroyed . | . . . Machines Disabled . | . . . Actions | -11 -10 -10 --------- Run | Scr Mat Min Total 495 | . 170 325 Wait 10 | . 8 2 Move 435 | . 132 303 Hop . | . . . Pick Up 2 | . 1 1 Fast Attach 2 | . 2 . Attach 2 | . . 2 Detach . | . . . Swap 3 | . 2 1 Drop 4 | . 2 2 Fire 37 | . 23 14 Melee . | . . . Ram . | . . . Kick . | . . . Crush . | . . . Escape Stasis . | . . . Rewire . | . . . Trap . | . . . Miscellaneous . | . . . Route ------- -11/Scrapyard -10/Materials (discovered 2 exits: *Min x2) -10/Mines (discovered 2 exits: [*Mat x2]) History --------- Turn | Location | Event 1 | -11/Scrapyard | Discovered new exit (range 0) 1 | -11/Scrapyard | Entered Materials 200 | -10/Materials | Identified exit to Mines 243 | -10/Materials | Entered Mines 266 | -10/Mines | A weapon hastily lodged in a ceiling crevice suddenly fell to the ground 307 | -10/Mines | Build established: Mutant 380 | -10/Mines | Discovered new exit (range 4) 446 | -10/Mines | Learned location of Mines (-9) 479 | -10/Mines | Discovered new exit (range 15) 615 | -10/Mines | Assembled infested the area 639 | -10/Mines | Core integrity fell below 50% 657 | -10/Mines | Destroyed by D-53 Grenadier with Mini Grenade Launcher Last Messages --------------- 00632_ as-73833 destroyed. 00632_ as-70023 destroyed. 00633_ K-01 Serf collects debris. 00634_ U-05 Engineer destroyed. 00634_ Ion Engine destroyed. 00635_ The unstable cave ceiling collapses. 00636_ Assault Rifle destroyed. 00636_ Aluminum Leg destroyed. 00638_ R-06 Scavenger destroyed. 00638_ K-01 Serf collects debris. 00641_ The unstable cave ceiling collapses. 00642_ K-01 Serf collects debris. 00642_ Acquired 20 matter. 00642_ as-23103 destroyed. 00643_ D-53 Grenadier heat spikes uncontrollably. 00644_ D-53 Grenadier overheating. 00647_ The unstable cave ceiling collapses. 00649_ K-01 Serf destroyed. 00654_ Lgt. Treads destroyed. 00657_ The unstable cave ceiling collapses. Map ----- +----------------------------------------------------+ | ??????????# ?????## ?? | | ????????## ?????# ## ?? | | ???????## #?????## % ??? ##????? | | ??????## #???? # ## !%* #?????? | | ????### < #???## ##?????? | | ???## #???# # #### ##??????? | | ??## #???? ???????????????? | | ?## #??### #????????????????? | | ?# #???# #?????????????????? | | ?# #????# ###???????????????? | | ??# """ #???##% #???????????????? | | ??# """ ##### " ##??????????????? | | ??# """ ## #??????????????? | | ??# # ##??????????????? | | ??# #?#????????????? | | ??# ## d ## #????????????? | | ??## ######### d #????????????? | | ???###### #???????# ! ####????????????? | | ????????# #???##### #???????????????? | | ????????# ##### ## ! ##???????????????? | | ????????# ## #### ????????? | | ????????# # ??????? | | ????????##### t ??????? | | ????????????## ?????? | | ?????????????## ## ??????? | | ??????????????## @ ##?? ##??????? | | ???????????????## ###????? ###?###???? | | ????????????????## ##??????????? ## ?? | | ?????????????????### ###???????????? ?? | | ???????????????????# ##?????????????? ??? | | ???????????????????# #??????????????? ???? | | ???????????????????# #######????????? #???? | | ???????????????????# #????????? #???? | | ???????????????????######## ###??????? #???? | | ??????????????????????????# #???#### #????? | | ??????????????????????????## #??## ######## | | ???????????????????????????# #### | | ???????????????????????????# | | ???????????????????????????###### ####### | | ????????????????????????????????## #?????? | | ?????????????????????????????????# ### #?????? | | ?????????????????????????????????# #?# ????? | | ????????###??????################# #?### ???? | | ??????###T###????# [ #???? ##??? | | ??????# #????# ############# ###?????#???# | | ??????# #????# #???????????#*#???????????# | | ??????# #????# #????????##?# #???????????# | | ??????# < #????# #????????#T##=####????????# | | ??????# #????# #????????# [ #????????? | | ??????# ###### #????????# """ #????????? | +----------------------------------------------------+ Best States ------------- Heat Dissipation 25 Energy Generation 10 Energy Capacity 250 Matter Stores 300 Matter Capacity 300 Sight Range 16 Terrain Scan Density 10 Evasion (%) 55 Targeting Accuracy 5 Recoil Reduction 2 Item Schematics ----------------- Cargo Storage Unit | -10/Mines | Hacked Huge Storage Unit | -10/Mines | Hacked Lrg. Storage Unit | -10/Mines | Hacked Robot Schematics ------------------ None Fabricated ------------ Nothing Alien Tech Used ----------------- None Achievements -------------- None Challenges ------------ None Game ------ Seed PulseImpulseStripper Manual? 0 Play Time 00:06:12 Cumulative 328.5 hours Start 2022.05.05 @ 15:36:04 End 2022.05.05 @ 15:39:54 Sessions 1 Manual Loads 0 Difficulty Rogue Special Mode None Game No. 364 Rogue 364 Adventurer 0 Explorer 0 Win Type - Total 28 Types 17/3/2/1/2/0/3/0/0 Lore% 86 Gallery% 84 Achievement% 80 Wizard Run 0 Options --------- ASCII 0 Keyboard 0 Movement Arrows Keybinds 0 Fullscreen 2 Font 18/SmallcapsGlow Map View 76x50 Tactical HUD 1 Map Filters NONE Filters NONE Steam 1 RUN: 3785a39e-db68-4e2c-bdeb-39225714dae4